Workbook

Sheet 1
J3: الاسم | K3: المصريين
J4: التاريخ | K4: 2021-04-01 | W4: اليوم | X4: =K4 -> 2021-04-01
J6: قبل التسحيب | L6: مسحب مع خملة | N6: مسحب احمر | P6: مسحب سوبر | R6: مسحب صحن | T6: مسحب كامل مجمد | V6: صافي | W6: العدد | X6: النسبة
J7: عدد | K7: الصافي | L7: عدد | M7: الصافي | N7: عدد | O7: الصافي | P7: عدد | Q7: الصافي | R7: عدد | S7: الصافي | T7: عدد | U7: الصافي | V7: الكمية
J8: 12 | K8: 450 | L8: 40 | M8: 485 | N8: 30 | O8: 225 | P8: 10 | Q8: 45 | R8: 10 | S8: 100 | T8: 12 | U8: 350
J23: =SUM(J8:J22) -> 12 | K23: =SUM(K8:K22)-(J23*0.9) -> 439.2 | L23: =SUM(L8:L22) -> 40 | M23: =SUM(M8:M22)-(L23*0.9) -> 449 | N23: =SUM(N8:N22) -> 30 | O23: =SUM(O8:O22)-(N23*0.9) -> 198 | P23: =SUM(P8:P22) -> 10 | Q23: =SUM(Q8:Q22)-(P23*0.9) -> 36 | R23: =SUM(R8:R22) -> 10 | S23: =SUM(S8:S22)-(R23*0.9) -> 91 | T23: =SUM(T8:T22) -> 12 | U23: =SUM(U8:U22)-(T23*1.07) -> 337.16 | V23: =SUM(M23+O23+Q23+S23+U23) -> 1111.16 | W23: =SUM(L23+N23+P23+R23)*10 -> 900 | X23: =V23/K23 -> 2.52996357
J25: الاسم | K25: مزيد
J26: التاريخ | K26: 2021-04-01 | W26: اليوم | X26: =K26 -> 2021-04-01
J28: قبل التسحيب | L28: مسحب مع خملة | N28: مسحب احمر | P28: مسحب سوبر | R28: مسحب صحن | T28: مسحب كامل مجمد | V28: صافي | W28: العدد | X28: النسبة
J29: عدد | K29: الصافي | L29: عدد | M29: الصافي | N29: عدد | O29: الصافي | P29: عدد | Q29: الصافي | R29: عدد | S29: الصافي | T29: عدد | U29: الصافي | V29: الكمية
J30: 15 | K30: 800 | L30: 20 | M30: 455 | N30: 12 | O30: 225 | P30: 18 | Q30: 180 | R30: 15 | S30: 454 | T30: 40 | U30: 225
J45: =SUM(J30:J44) -> 15 | K45: =SUM(K30:K44)-(J45*0.9) -> 786.5 | L45: =SUM(L30:L44) -> 20 | M45: =SUM(M30:M44)-(L45*0.9) -> 437 | N45: =SUM(N30:N44) -> 12 | O45: =SUM(O30:O44)-(N45*0.9) -> 214.2 | P45: =SUM(P30:P44) -> 18 | Q45: =SUM(Q30:Q44)-(P45*0.9) -> 163.8 | R45: =SUM(R30:R44) -> 15 | S45: =SUM(S30:S44)-(R45*0.9) -> 440.5 | T45: =SUM(T30:T44) -> 40 | U45: =SUM(U30:U44)-(T45*1.07) -> 182.2 | V45: =SUM(M45+O45+Q45+S45+U45) -> 1437.7 | W45: =SUM(L45+N45+P45+R45)*10 -> 650 | X45: =V45/K45 -> 1.827972028
J47: الاسم | K47: الشمري
J48: التاريخ | K48: 2021-04-01 | W48: اليوم | X48: =K48 -> 2021-04-01
J50: قبل التسحيب | L50: مسحب مع خملة | N50: مسحب احمر | P50: مسحب سوبر | R50: مسحب صحن | T50: مسحب كامل مجمد | V50: صافي | W50: العدد | X50: النسبة
J51: عدد | K51: الصافي | L51: عدد | M51: الصافي | N51: عدد | O51: الصافي | P51: عدد | Q51: الصافي | R51: عدد | S51: الصافي | T51: عدد | U51: الصافي | V51: الكمية
J52: 85 | K52: 593 | L52: 20 | M52: 335 | N52: 45 | O52: 225 | P52: 85 | Q52: 448 | R52: 52 | S52: 420 | T52: 9 | U52: 20
J67: =SUM(J52:J66) -> 85 | K67: =SUM(K52:K66)-(J67*0.9) -> 516.5 | L67: =SUM(L52:L66) -> 20 | M67: =SUM(M52:M66)-(L67*0.9) -> 317 | N67: =SUM(N52:N66) -> 45 | O67: =SUM(O52:O66)-(N67*0.9) -> 184.5 | P67: =SUM(P52:P66) -> 85 | Q67: =SUM(Q52:Q66)-(P67*0.9) -> 371.5 | R67: =SUM(R52:R66) -> 52 | S67: =SUM(S52:S66)-(R67*0.9) -> 373.2 | T67: =SUM(T52:T66) -> 9 | U67: =SUM(U52:U66)-(T67*1.07) -> 10.37 | V67: =SUM(M67+O67+Q67+S67+U67) -> 1256.57 | W67: =SUM(L67+N67+P67+R67)*10 -> 2020 | X67: =V67/K67 -> 2.43285576

Sheet 2
J3: الاسم | K3: المصريين
J4: التاريخ | K4: ='1'!K4+1 -> 2021-04-02 | W4: اليوم | X4: =K4 -> 2021-04-02
J6: قبل التسحيب | L6: مسحب مع خملة | N6: مسحب احمر | P6: مسحب سوبر | R6: مسحب صحن | T6: مسحب كامل مجمد | V6: صافي | W6: العدد | X6: النسبة
J7: عدد | K7: الصافي | L7: عدد | M7: الصافي | N7: عدد | O7: الصافي | P7: عدد | Q7: الصافي | R7: عدد | S7: الصافي | T7: عدد | U7: الصافي | V7: الكمية
J8: 15 | K8: 350 | L8: 45 | M8: 850 | N8: 35 | O8: 320 | P8: 15 | Q8: 415 | R8: 25 | S8: 158 | T8: 17 | U8: 382
J23: =SUM(J8:J22) -> 15 | K23: =SUM(K8:K22)-(J23*0.9) -> 336.5 | L23: =SUM(L8:L22) -> 45 | M23: =SUM(M8:M22)-(L23*0.9) -> 809.5 | N23: =SUM(N8:N22) -> 35 | O23: =SUM(O8:O22)-(N23*0.9) -> 288.5 | P23: =SUM(P8:P22) -> 15 | Q23: =SUM(Q8:Q22)-(P23*0.9) -> 401.5 | R23: =SUM(R8:R22) -> 25 | S23: =SUM(S8:S22)-(R23*0.9) -> 135.5 | T23: =SUM(T8:T22) -> 17 | U23: =SUM(U8:U22)-(T23*1.07) -> 363.81 | V23: =SUM(M23+O23+Q23+S23+U23) -> 1998.81 | W23: =SUM(L23+N23+P23+R23)*10 -> 1200 | X23: =V23/K23 -> 5.94
J25: الاسم | K25: مزيد
J26: التاريخ | K26: ='1'!K26+1 -> 2021-04-02 | W26: اليوم | X26: =K26 -> 2021-04-02
J28: قبل التسحيب | L28: مسحب مع خملة | N28: مسحب احمر | P28: مسحب سوبر | R28: مسحب صحن | T28: مسحب كامل مجمد | V28: صافي | W28: العدد | X28: النسبة
J29: عدد | K29: الصافي | L29: عدد | M29: الصافي | N29: عدد | O29: الصافي | P29: عدد | Q29: الصافي | R29: عدد | S29: الصافي | T29: عدد | U29: الصافي | V29: الكمية
J30: 15 | K30: 800 | L30: 45 | M30: 300 | N30: 35 | O30: 520 | P30: 15 | Q30: 480 | R30: 25 | S30: 159 | T30: 17 | U30: 658
J45: =SUM(J30:J44) -> 15 | K45: =SUM(K30:K44)-(J45*0.9) -> 786.5 | L45: =SUM(L30:L44) -> 45 | M45: =SUM(M30:M44)-(L45*0.9) -> 259.5 | N45: =SUM(N30:N44) -> 35 | O45: =SUM(O30:O44)-(N45*0.9) -> 488.5 | P45: =SUM(P30:P44) -> 15 | Q45: =SUM(Q30:Q44)-(P45*0.9) -> 466.5 | R45: =SUM(R30:R44) -> 25 | S45: =SUM(S30:S44)-(R45*0.9) -> 136.5 | T45: =SUM(T30:T44) -> 17 | U45: =SUM(U30:U44)-(T45*1.07) -> 639.81 | V45: =SUM(M45+O45+Q45+S45+U45) -> 1990.81 | W45: =SUM(L45+N45+P45+R45)*10 -> 1200 | X45: =V45/K45 -> 2.531226955
J47: الاسم | K47: الشمري
J48: التاريخ | K48: ='1'!K48+1 -> 2021-04-02 | W48: اليوم | X48: =K48 -> 2021-04-02
J50: قبل التسحيب | L50: مسحب مع خملة | N50: مسحب احمر | P50: مسحب سوبر | R50: مسحب صحن | T50: مسحب كامل مجمد | V50: صافي | W50: العدد | X50: النسبة
J51: عدد | K51: الصافي | L51: عدد | M51: الصافي | N51: عدد | O51: الصافي | P51: عدد | Q51: الصافي | R51: عدد | S51: الصافي | T51: عدد | U51: الصافي | V51: الكمية
J52: 15 | K52: 900 | L52: 45 | M52: 580 | N52: 35 | O52: 590 | P52: 15 | Q52: 65 | R52: 25 | S52: 58 | T52: 17 | U52: 258
J67: =SUM(J52:J66) -> 15 | K67: =SUM(K52:K66)-(J67*0.9) -> 886.5 | L67: =SUM(L52:L66) -> 45 | M67: =SUM(M52:M66)-(L67*0.9) -> 539.5 | N67: =SUM(N52:N66) -> 35 | O67: =SUM(O52:O66)-(N67*0.9) -> 558.5 | P67: =SUM(P52:P66) -> 15 | Q67: =SUM(Q52:Q66)-(P67*0.9) -> 51.5 | R67: =SUM(R52:R66) -> 25 | S67: =SUM(S52:S66)-(R67*0.9) -> 35.5 | T67: =SUM(T52:T66) -> 17 | U67: =SUM(U52:U66)-(T67*1.07) -> 239.81 | V67: =SUM(M67+O67+Q67+S67+U67) -> 1424.81 | W67: =SUM(L67+N67+P67+R67)*10 -> 1200 | X67: =V67/K67 -> 1.607230682

Sheet 3
J3: الاسم | K3: المصريين
J4: التاريخ | K4: ='2'!K4+1 -> 2021-04-03 | W4: اليوم | X4: =K4 -> 2021-04-03
J6: قبل التسحيب | L6: مسحب مع خملة | N6: مسحب احمر | P6: مسحب سوبر | R6: مسحب صحن | T6: مسحب كامل مجمد | V6: صافي | W6: العدد | X6: النسبة
J7: عدد | K7: الصافي | L7: عدد | M7: الصافي | N7: عدد | O7: الصافي | P7: عدد | Q7: الصافي | R7: عدد | S7: الصافي | T7: عدد | U7: الصافي | V7: الكمية
J8: 15 | K8: 900 | L8: 30 | M8: 750 | N8: 20 | O8: 158 | P8: 15 | Q8: 245 | R8: 15 | S8: 350 | T8: 17 | U8: 170
J23: =SUM(J8:J22) -> 15 | K23: =SUM(K8:K22)-(J23*0.9) -> 886.5 | L23: =SUM(L8:L22) -> 30 | M23: =SUM(M8:M22)-(L23*0.9) -> 723 | N23: =SUM(N8:N22) -> 20 | O23: =SUM(O8:O22)-(N23*0.9) -> 140 | P23: =SUM(P8:P22) -> 15 | Q23: =SUM(Q8:Q22)-(P23*0.9) -> 231.5 | R23: =SUM(R8:R22) -> 15 | S23: =SUM(S8:S22)-(R23*0.9) -> 336.5 | T23: =SUM(T8:T22) -> 17 | U23: =SUM(U8:U22)-(T23*1.07) -> 151.81 | V23: =SUM(M23+O23+Q23+S23+U23) -> 1582.81 | W23: =SUM(L23+N23+P23+R23)*10 -> 800 | X23: =V23/K23 -> 1.785459673
J25: الاسم | K25: مزيد
J26: التاريخ | K26: ='2'!K26+1 -> 2021-04-03 | W26: اليوم | X26: =K26 -> 2021-04-03
J28: قبل التسحيب | L28: مسحب مع خملة | N28: مسحب احمر | P28: مسحب سوبر | R28: مسحب صحن | T28: مسحب كامل مجمد | V28: صافي | W28: العدد | X28: النسبة
J29: عدد | K29: الصافي | L29: عدد | M29: الصافي | N29: عدد | O29: الصافي | P29: عدد | Q29: الصافي | R29: عدد | S29: الصافي | T29: عدد | U29: الصافي | V29: الكمية
J30: 15 | K30: 854 | L30: 30 | M30: 582 | N30: 20 | O30: 465 | P30: 15 | Q30: 589 | R30: 15 | S30: 58 | T30: 17 | U30: 587
J45: =SUM(J30:J44) -> 15 | K45: =SUM(K30:K44)-(J45*0.9) -> 840.5 | L45: =SUM(L30:L44) -> 30 | M45: =SUM(M30:M44)-(L45*0.9) -> 555 | N45: =SUM(N30:N44) -> 20 | O45: =SUM(O30:O44)-(N45*0.9) -> 447 | P45: =SUM(P30:P44) -> 15 | Q45: =SUM(Q30:Q44)-(P45*0.9) -> 575.5 | R45: =SUM(R30:R44) -> 15 | S45: =SUM(S30:S44)-(R45*0.9) -> 44.5 | T45: =SUM(T30:T44) -> 17 | U45: =SUM(U30:U44)-(T45*1.07) -> 568.81 | V45: =SUM(M45+O45+Q45+S45+U45) -> 2190.81 | W45: =SUM(L45+N45+P45+R45)*10 -> 800 | X45: =V45/K45 -> 2.606555622
J47: الاسم | K47: الشمري
J48: التاريخ | K48: ='2'!K48+1 -> 2021-04-03 | W48: اليوم | X48: =K48 -> 2021-04-03
J50: قبل التسحيب | L50: مسحب مع خملة | N50: مسحب احمر | P50: مسحب سوبر | R50: مسحب صحن | T50: مسحب كامل مجمد | V50: صافي | W50: العدد | X50: النسبة
J51: عدد | K51: الصافي | L51: عدد | M51: الصافي | N51: عدد | O51: الصافي | P51: عدد | Q51: الصافي | R51: عدد | S51: الصافي | T51: عدد | U51: الصافي | V51: الكمية
J52: 15 | K52: 630 | L52: 30 | M52: 458 | N52: 20 | O52: 544 | P52: 15 | Q52: 584 | R52: 15 | S52: 584 | T52: 17 | U52: 522
J67: =SUM(J52:J66) -> 15 | K67: =SUM(K52:K66)-(J67*0.9) -> 616.5 | L67: =SUM(L52:L66) -> 30 | M67: =SUM(M52:M66)-(L67*0.9) -> 431 | N67: =SUM(N52:N66) -> 20 | O67: =SUM(O52:O66)-(N67*0.9) -> 526 | P67: =SUM(P52:P66) -> 15 | Q67: =SUM(Q52:Q66)-(P67*0.9) -> 570.5 | R67: =SUM(R52:R66) -> 15 | S67: =SUM(S52:S66)-(R67*0.9) -> 570.5 | T67: =SUM(T52:T66) -> 17 | U67: =SUM(U52:U66)-(T67*1.07) -> 503.81 | V67: =SUM(M67+O67+Q67+S67+U67) -> 2601.81 | W67: =SUM(L67+N67+P67+R67)*10 -> 800 | X67: =V67/K67 -> 4.220291971

Sheet 4
J3: الاسم | K3: المصريين
J4: التاريخ | K4: ='3'!K4+1 -> 2021-04-04 | W4: اليوم | X4: =K4 -> 2021-04-04
J6: قبل التسحيب | L6: مسحب مع خملة | N6: مسحب احمر | P6: مسحب سوبر | R6: مسحب صحن | T6: مسحب كامل مجمد | V6: صافي | W6: العدد | X6: النسبة
J7: عدد | K7: الصافي | L7: عدد | M7: الصافي | N7: عدد | O7: الصافي | P7: عدد | Q7: الصافي | R7: عدد | S7: الصافي | T7: عدد | U7: الصافي | V7: الكمية
J8: 17 | K8: 957 | L8: 50 | M8: 458 | N8: 25 | O8: 228 | P8: 12 | Q8: 278 | R8: 11 | S8: 114 | T8: 19 | U8: 358
J23: =SUM(J8:J22) -> 17 | K23: =SUM(K8:K22)-(J23*0.9) -> 941.7 | L23: =SUM(L8:L22) -> 50 | M23: =SUM(M8:M22)-(L23*0.9) -> 413 | N23: =SUM(N8:N22) -> 25 | O23: =SUM(O8:O22)-(N23*0.9) -> 205.5 | P23: =SUM(P8:P22) -> 12 | Q23: =SUM(Q8:Q22)-(P23*0.9) -> 267.2 | R23: =SUM(R8:R22) -> 11 | S23: =SUM(S8:S22)-(R23*0.9) -> 104.1 | T23: =SUM(T8:T22) -> 19 | U23: =SUM(U8:U22)-(T23*1.07) -> 337.67 | V23: =SUM(M23+O23+Q23+S23+U23) -> 1327.47 | W23: =SUM(L23+N23+P23+R23)*10 -> 980 | X23: =V23/K23 -> 1.409652756
J25: الاسم | K25: مزيد
J26: التاريخ | K26: ='3'!K26+1 -> 2021-04-04 | W26: اليوم | X26: =K26 -> 2021-04-04
J28: قبل التسحيب | L28: مسحب مع خملة | N28: مسحب احمر | P28: مسحب سوبر | R28: مسحب صحن | T28: مسحب كامل مجمد | V28: صافي | W28: العدد | X28: النسبة
J29: عدد | K29: الصافي | L29: عدد | M29: الصافي | N29: عدد | O29: الصافي | P29: عدد | Q29: الصافي | R29: عدد | S29: الصافي | T29: عدد | U29: الصافي | V29: الكمية
J30: 17 | K30: 548 | L30: 50 | M30: 457 | N30: 25 | O30: 255 | P30: 12 | Q30: 659 | R30: 11 | S30: 214 | T30: 19 | U30: 23
J45: =SUM(J30:J44) -> 17 | K45: =SUM(K30:K44)-(J45*0.9) -> 532.7 | L45: =SUM(L30:L44) -> 50 | M45: =SUM(M30:M44)-(L45*0.9) -> 412 | N45: =SUM(N30:N44) -> 25 | O45: =SUM(O30:O44)-(N45*0.9) -> 232.5 | P45: =SUM(P30:P44) -> 12 | Q45: =SUM(Q30:Q44)-(P45*0.9) -> 648.2 | R45: =SUM(R30:R44) -> 11 | S45: =SUM(S30:S44)-(R45*0.9) -> 204.1 | T45: =SUM(T30:T44) -> 19 | U45: =SUM(U30:U44)-(T45*1.07) -> 2.67 | V45: =SUM(M45+O45+Q45+S45+U45) -> 1499.47 | W45: =SUM(L45+N45+P45+R45)*10 -> 980 | X45: =V45/K45 -> 2.814848883
J47: الاسم | K47: الشمري
J48: التاريخ | K48: ='3'!K48+1 -> 2021-04-04 | W48: اليوم | X48: =K48 -> 2021-04-04
J50: قبل التسحيب | L50: مسحب مع خملة | N50: مسحب احمر | P50: مسحب سوبر | R50: مسحب صحن | T50: مسحب كامل مجمد | V50: صافي | W50: العدد | X50: النسبة
J51: عدد | K51: الصافي | L51: عدد | M51: الصافي | N51: عدد | O51: الصافي | P51: عدد | Q51: الصافي | R51: عدد | S51: الصافي | T51: عدد | U51: الصافي | V51: الكمية
J52: 17 | K52: 458 | L52: 50 | M52: 547 | N52: 25 | O52: 224 | P52: 12 | Q52: 48 | R52: 11 | S52: 554 | T52: 19 | U52: 265
J67: =SUM(J52:J66) -> 17 | K67: =SUM(K52:K66)-(J67*0.9) -> 442.7 | L67: =SUM(L52:L66) -> 50 | M67: =SUM(M52:M66)-(L67*0.9) -> 502 | N67: =SUM(N52:N66) -> 25 | O67: =SUM(O52:O66)-(N67*0.9) -> 201.5 | P67: =SUM(P52:P66) -> 12 | Q67: =SUM(Q52:Q66)-(P67*0.9) -> 37.2 | R67: =SUM(R52:R66) -> 11 | S67: =SUM(S52:S66)-(R67*0.9) -> 544.1 | T67: =SUM(T52:T66) -> 19 | U67: =SUM(U52:U66)-(T67*1.07) -> 244.67 | V67: =SUM(M67+O67+Q67+S67+U67) -> 1529.47 | W67: =SUM(L67+N67+P67+R67)*10 -> 980 | X67: =V67/K67 -> 3.454867856

Sheet 5
J3: الاسم | K3: المصريين
J4: التاريخ | K4: ='4'!K4+1 -> 2021-04-05 | W4: اليوم | X4: =K4 -> 2021-04-05
J6: قبل التسحيب | L6: مسحب مع خملة | N6: مسحب احمر | P6: مسحب سوبر | R6: مسحب صحن | T6: مسحب كامل مجمد | V6: صافي | W6: العدد | X6: النسبة
J7: عدد | K7: الصافي | L7: عدد | M7: الصافي | N7: عدد | O7: الصافي | P7: عدد | Q7: الصافي | R7: عدد | S7: الصافي | T7: عدد | U7: الصافي | V7: الكمية
J8: 58 | K8: 850 | L8: 47 | M8: 28 | N8: 30 | O8: 228 | P8: 18 | Q8: 57 | R8: 19 | S8: 247 | T8: 16 | U8: 184
J23: =SUM(J8:J22) -> 58 | K23: =SUM(K8:K22)-(J23*0.9) -> 797.8 | L23: =SUM(L8:L22) -> 47 | M23: =SUM(M8:M22)-(L23*0.9) -> -14.3 | N23: =SUM(N8:N22) -> 30 | O23: =SUM(O8:O22)-(N23*0.9) -> 201 | P23: =SUM(P8:P22) -> 18 | Q23: =SUM(Q8:Q22)-(P23*0.9) -> 40.8 | R23: =SUM(R8:R22) -> 19 | S23: =SUM(S8:S22)-(R23*0.9) -> 229.9 | T23: =SUM(T8:T22) -> 16 | U23: =SUM(U8:U22)-(T23*1.07) -> 166.88 | V23: =SUM(M23+O23+Q23+S23+U23) -> 624.28 | W23: =SUM(L23+N23+P23+R23)*10 -> 1140 | X23: =V23/K23 -> 0.7825018802

Sheet 6
J3: الاسم | K3: المصريين
J4: التاريخ | K4: ='5'!K4+1 -> 2021-04-06 | W4: اليوم | X4: =K4 -> 2021-04-06
J6: قبل التسحيب | L6: مسحب مع خملة | N6: مسحب احمر | P6: مسحب سوبر | R6: مسحب صحن | T6: مسحب كامل مجمد | V6: صافي | W6: العدد | X6: النسبة
J7: عدد | K7: الصافي | L7: عدد | M7: الصافي | N7: عدد | O7: الصافي | P7: عدد | Q7: الصافي | R7: عدد | S7: الصافي | T7: عدد | U7: الصافي | V7: الكمية
J8: 12 | K8: 450 | L8: 40 | M8: 485 | N8: 30 | O8: 225 | P8: 10 | Q8: 45 | R8: 10 | S8: 100 | T8: 12 | U8: 350
J23: =SUM(J8:J22) -> 12 | K23: =SUM(K8:K22)-(J23*0.9) -> 439.2 | L23: =SUM(L8:L22) -> 40 | M23: =SUM(M8:M22)-(L23*0.9) -> 449 | N23: =SUM(N8:N22) -> 30 | O23: =SUM(O8:O22)-(N23*0.9) -> 198 | P23: =SUM(P8:P22) -> 10 | Q23: =SUM(Q8:Q22)-(P23*0.9) -> 36 | R23: =SUM(R8:R22) -> 10 | S23: =SUM(S8:S22)-(R23*0.9) -> 91 | T23: =SUM(T8:T22) -> 12 | U23: =SUM(U8:U22)-(T23*1.07) -> 337.16 | V23: =SUM(M23+O23+Q23+S23+U23) -> 1111.16 | W23: =SUM(L23+N23+P23+R23)*10 -> 900 | X23: =V23/K23 -> 2.52996357

Sheet 7
J3: الاسم | K3: المصريين
J4: التاريخ | K4: ='6'!K4+1 -> 2021-04-07 | W4: اليوم | X4: =K4 -> 2021-04-07
J6: قبل التسحيب | L6: مسحب مع خملة | N6: مسحب احمر | P6: مسحب سوبر | R6: مسحب صحن | T6: مسحب كامل مجمد | V6: صافي | W6: العدد | X6: النسبة
J7: عدد | K7: الصافي | L7: عدد | M7: الصافي | N7: عدد | O7: الصافي | P7: عدد | Q7: الصافي | R7: عدد | S7: الصافي | T7: عدد | U7: الصافي | V7: الكمية
J8: 58 | K8: 457 | L8: 25 | M8: 854 | N8: 36 | O8: 125 | P8: 47 | Q8: 447 | R8: 58 | S8: 447 | T8: 48 | U8: 780
J23: =SUM(J8:J22) -> 58 | K23: =SUM(K8:K22)-(J23*0.9) -> 404.8 | L23: =SUM(L8:L22) -> 25 | M23: =SUM(M8:M22)-(L23*0.9) -> 831.5 | N23: =SUM(N8:N22) -> 36 | O23: =SUM(O8:O22)-(N23*0.9) -> 92.6 | P23: =SUM(P8:P22) -> 47 | Q23: =SUM(Q8:Q22)-(P23*0.9) -> 404.7 | R23: =SUM(R8:R22) -> 58 | S23: =SUM(S8:S22)-(R23*0.9) -> 394.8 | T23: =SUM(T8:T22) -> 48 | U23: =SUM(U8:U22)-(T23*1.07) -> 728.64 | V23: =SUM(M23+O23+Q23+S23+U23) -> 2452.24 | W23: =SUM(L23+N23+P23+R23)*10 -> 1660 | X23: =V23/K23 -> 6.057905138

Sheet 8
J3: الاسم | K3: المصريين
J4: التاريخ | K4: ='7'!K4+1 -> 2021-04-08 | W4: اليوم | X4: =K4 -> 2021-04-08
J6: قبل التسحيب | L6: مسحب مع خملة | N6: مسحب احمر | P6: مسحب سوبر | R6: مسحب صحن | T6: مسحب كامل مجمد | V6: صافي | W6: العدد | X6: النسبة
J7: عدد | K7: الصافي | L7: عدد | M7: الصافي | N7: عدد | O7: الصافي | P7: عدد | Q7: الصافي | R7: عدد | S7: الصافي | T7: عدد | U7: الصافي | V7: الكمية
J8: 5 | K8: 45 | L8: 85 | M8: 477 | N8: 25 | O8: 225 | P8: 15 | Q8: 147 | R8: 58 | S8: 558 | T8: 15 | U8: 558
J23: =SUM(J8:J22) -> 5 | K23: =SUM(K8:K22)-(J23*0.9) -> 40.5 | L23: =SUM(L8:L22) -> 85 | M23: =SUM(M8:M22)-(L23*0.9) -> 400.5 | N23: =SUM(N8:N22) -> 25 | O23: =SUM(O8:O22)-(N23*0.9) -> 202.5 | P23: =SUM(P8:P22) -> 15 | Q23: =SUM(Q8:Q22)-(P23*0.9) -> 133.5 | R23: =SUM(R8:R22) -> 58 | S23: =SUM(S8:S22)-(R23*0.9) -> 505.8 | T23: =SUM(T8:T22) -> 15 | U23: =SUM(U8:U22)-(T23*1.07) -> 541.95 | V23: =SUM(M23+O23+Q23+S23+U23) -> 1784.25 | W23: =SUM(L23+N23+P23+R23)*10 -> 1830 | X23: =V23/K23 -> 44.05555556

Sheet 9
J3: الاسم | K3: المصريين
J4: التاريخ | K4: ='8'!K4+1 -> 2021-04-09 | W4: اليوم | X4: =K4 -> 2021-04-09
J6: قبل التسحيب | L6: مسحب مع خملة | N6: مسحب احمر | P6: مسحب سوبر | R6: مسحب صحن | T6: مسحب كامل مجمد | V6: صافي | W6: العدد | X6: النسبة
J7: عدد | K7: الصافي | L7: عدد | M7: الصافي | N7: عدد | O7: الصافي | P7: عدد | Q7: الصافي | R7: عدد | S7: الصافي | T7: عدد | U7: الصافي | V7: الكمية
J8: 58 | K8: 445 | L8: 25 | M8: 558 | N8: 35 | O8: 335 | P8: 5 | Q8: 447 | R8: 15 | S8: 150 | T8: 12 | U8: 178
J23: =SUM(J8:J22) -> 58 | K23: =SUM(K8:K22)-(J23*0.9) -> 392.8 | L23: =SUM(L8:L22) -> 25 | M23: =SUM(M8:M22)-(L23*0.9) -> 535.5 | N23: =SUM(N8:N22) -> 35 | O23: =SUM(O8:O22)-(N23*0.9) -> 303.5 | P23: =SUM(P8:P22) -> 5 | Q23: =SUM(Q8:Q22)-(P23*0.9) -> 442.5 | R23: =SUM(R8:R22) -> 15 | S23: =SUM(S8:S22)-(R23*0.9) -> 136.5 | T23: =SUM(T8:T22) -> 12 | U23: =SUM(U8:U22)-(T23*1.07) -> 165.16 | V23: =SUM(M23+O23+Q23+S23+U23) -> 1583.16 | W23: =SUM(L23+N23+P23+R23)*10 -> 800 | X23: =V23/K23 -> 4.030448065

Sheet 10
J3: الاسم | K3: المصريين
J4: التاريخ | K4: ='9'!K4+1 -> 2021-04-10 | W4: اليوم | X4: =K4 -> 2021-04-10
J6: قبل التسحيب | L6: مسحب مع خملة | N6: مسحب احمر | P6: مسحب سوبر | R6: مسحب صحن | T6: مسحب كامل مجمد | V6: صافي | W6: العدد | X6: النسبة
J7: عدد | K7: الصافي | L7: عدد | M7: الصافي | N7: عدد | O7: الصافي | P7: عدد | Q7: الصافي | R7: عدد | S7: الصافي | T7: عدد | U7: الصافي | V7: الكمية
J8: 58 | K8: 4448 | L8: 35 | M8: 441 | N8: 58 | O8: 554 | P8: 58 | Q8: 448 | R8: 15 | S8: 150 | T8: 19 | U8: 196
J23: =SUM(J8:J22) -> 58 | K23: =SUM(K8:K22)-(J23*0.9) -> 4395.8 | L23: =SUM(L8:L22) -> 35 | M23: =SUM(M8:M22)-(L23*0.9) -> 409.5 | N23: =SUM(N8:N22) -> 58 | O23: =SUM(O8:O22)-(N23*0.9) -> 501.8 | P23: =SUM(P8:P22) -> 58 | Q23: =SUM(Q8:Q22)-(P23*0.9) -> 395.8 | R23: =SUM(R8:R22) -> 15 | S23: =SUM(S8:S22)-(R23*0.9) -> 136.5 | T23: =SUM(T8:T22) -> 19 | U23: =SUM(U8:U22)-(T23*1.07) -> 175.67 | V23: =SUM(M23+O23+Q23+S23+U23) -> 1619.27 | W23: =SUM(L23+N23+P23+R23)*10 -> 1660 | X23: =V23/K23 -> 0.3683675326

Sheet التقرير 1
A1: كشف تفصيلي | I1: المصريين | J1: k3 | L1: ='1'!K4 -> 2021-04-01
A2: الاسم | B2: المصريين | I2: مزيد | J2: k25 | L2: =L1+1 -> 2021-04-02
I3: الشمري | J3: k47 | L3: 2021-04-03
A4: من تاريخ | B4: 2021-04-01 | E4: الى تاريخ | F4: 2021-04-04 | L4: 2021-04-04
L5: 2021-04-05
L6: 2021-04-06
L7: 2021-04-07
A8: تاريخ | B8: قبل التسحيب | C8: صافي | D8: العدد | E8: النسبة | L8: 2021-04-08
C9: الكمية | L9: 2021-04-09
L10: 2021-04-10
L11: 2021-04-11
L12: 2021-04-12
F13: مثال | L13: 2021-04-13
H14: صافي | L14: 2021-04-14
F15: تاريخ | G15: قبل التسحيب | H15: الكمية | I15: العدد | J15: النسبة | L15: 2021-04-15
F16: 2021-04-01 | G16: 439.2 | H16: 1111.16 | I16: 900 | J16: 2.52996357 | L16: 2021-04-16
F17: 2021-04-02 | G17: 336.5 | H17: 1998.81 | I17: 1200 | J17: 5.94 | L17: 2021-04-17
F18: 2021-04-03 | G18: 136.5 | H18: 1582.81 | I18: 800 | J18: 11.59567766 | L18: 2021-04-18
F19: 2021-04-04 | G19: 442.7 | H19: 1327.47 | I19: 980 | J19: 2.998576914 | L19: 2021-04-19
L20: 2021-04-20
F21: k4 | G21: k23 | H21: v23 | I21: w23 | J21: x23 | L21: 2021-04-21
L22: 2021-04-22
L23: 2021-04-23
L24: 2021-04-24
L25: 2021-04-25
L26: 2021-04-26
L27: 2021-04-27
L28: 2021-04-28
L29: 2021-04-29
L30: 2021-04-30
L31: 2021-05-01
A40: الصافي | B40: =SUM(B10:B39) -> 0 | C40: =SUM(C10:C39) -> 0 | D40: =SUM(D10:D39) -> 0 | E40: =SUM(E10:E39) -> 0

Sheet التقرير 2
A1: كشف تفصيلي | L1: ='1'!K4 -> 2021-04-01
L2: =L1+1 -> 2021-04-02
L3: 2021-04-03
A4: من تاريخ | B4: 2021-04-05 | E4: الى تاريخ | F4: 2021-04-10 | L4: 2021-04-04
L5: 2021-04-05
L6: 2021-04-06
L7: 2021-04-07
A8: تاريخ | B8: قبل التسحيب | C8: صافي | D8: العدد | E8: النسبة | L8: 2021-04-08
C9: الكمية | L9: 2021-04-09
L10: 2021-04-10
L11: 2021-04-11
L12: 2021-04-12
F13: مثال | L13: 2021-04-13
H14: صافي | L14: 2021-04-14
F15: تاريخ | G15: قبل التسحيب | H15: الكمية | I15: العدد | J15: النسبة | L15: 2021-04-15
F16: 2021-04-05 | G16: 797.8 | H16: 624.28 | I16: 1140 | J16: 0.7825018802 | L16: 2021-04-16
F17: 2021-04-06 | G17: 439.2 | H17: 1111.16 | I17: 900 | J17: 2.52996357 | L17: 2021-04-17
F18: 2021-04-07 | G18: 404.8 | H18: 2452.24 | I18: 1660 | J18: 6.057905138 | L18: 2021-04-18
F19: 2021-04-08 | G19: 40.5 | H19: 1784.25 | I19: 1830 | J19: 44.05555556 | L19: 2021-04-19
F20: 2021-04-09 | G20: 392.8 | H20: 1583.16 | I20: 800 | J20: 4.030448065 | L20: 2021-04-20
F21: 2021-04-10 | G21: 4395.8 | H21: 1619.27 | I21: 1660 | J21: 0.3683675326 | L21: 2021-04-21
F22: k4 | G22: k23 | H22: v23 | I22: w23 | J22: x23 | L22: 2021-04-22
L23: 2021-04-23
L24: 2021-04-24
L25: 2021-04-25
L26: 2021-04-26
L27: 2021-04-27
L28: 2021-04-28
L29: 2021-04-29
L30: 2021-04-30
L31: 2021-05-01
A40: الصافي | C40: =SUM(C10:C39) -> 0 | D40: =SUM(D10:D39) -> 0
